bitfinex/quotes_SOLUSD_20240625
["timestamp","ask_amount","ask_price","bid_price","bid_amount"]
[1719333540941,7.2184,138.54,138.47,7.2214]
[1719333541238,0.17,138.56,138.45,15.8197]
[1719333541444,0.17,138.56,138.5,7.2201]
[1719333542764,7.50102627,138.57,138.56,7.217]
[1719333542920,7.2131,138.64,138.57,7.2162]
[1719333543121,7.50300822,138.62,138.57,7.2162]
[1719333543719,7.50300822,138.62,138.58,7.2159]
[1719333543924,28.6749,138.65,138.58,7.2159]
[1719333544119,21.4625,138.65,138.59,7.2153]
[1719333544323,7.50133954,138.65,138.53,16.3866]
[1719333544946,14.71403954,138.65,138.58,7.216]
[1719333546354,7.2139,138.63,138.53,16.3866]
[1719333546548,13.88002507,138.65,138.57,7.2165]
[1719333546549,21.09262507,138.65,138.57,7.2165]
[1719333546839,21.09262507,138.65,138.57,7.2164]
[1719333546840,7.383,138.64,138.57,7.2164]
[1719333547045,0.17,138.64,138.53,16.3866]
[1719333547352,7.50133954,138.65,138.54,0.34]
[1719333547550,7.50133954,138.65,138.6,7.2149]
[1719333547756,7.50133954,138.65,138.54,0.34]
[1719333548056,7.50133954,138.65,138.59,7.2155]
[1719333548260,7.50133954,138.65,138.6,7.2149]
[1719333548426,7.50133954,138.65,138.59,7.2153]
[1719333548865,7.50133954,138.65,138.6,7.2149]
[1719333549742,7.50133954,138.65,138.59,7.2155]
[1719333549948,14.71373954,138.65,138.58,7.2158]
[1719333550146,7.2129,138.64,138.54,0.34]
[1719333550347,0.17,138.63,138.54,0.17]
[1719333550750,7.3837,138.63,138.53,40.0766]
[1719333551054,0.17,138.63,138.53,16.3866]
[1719333551256,20.17,138.63,138.57,7.2165]
[1719333551456,27.3834,138.63,138.56,7.2169]
[1719333551657,20.17,138.63,138.57,7.2163]
[1719333551961,0.17,138.63,138.58,7.2159]
[1719333552460,20.0,138.64,138.59,7.2154]
[1719333552757,20.0,138.64,138.53,16.3866]
[1719333552758,7.50133954,138.65,138.62,7.2138]
[1719333552942,35.35338553,138.69,138.62,7.2138]
[1719333553140,7.49887039,138.68,138.62,7.2138]
[1719333553537,7.49887039,138.68,138.63,7.2133]
[1719333553839,7.49887039,138.68,138.59,15.0037]
[1719333554358,14.70987039,138.68,138.59,15.0037]
[1719333554739,7.49887039,138.68,138.59,15.0037]
[1719333555128,7.2119,138.66,138.6,7.2149]
[1719333555330,7.2114,138.67,138.6,7.2149]
[1719333555540,7.49887039,138.68,138.61,7.2142]
[1719333555841,14.70967039,138.68,138.62,7.2139]
[1719333556254,0.17,138.67,138.61,7.2143]
[1719333556844,7.49887039,138.68,138.62,7.2136]
[1719333557651,14.70977039,138.68,138.59,15.0037]
[1719333557850,14.70977039,138.68,138.61,7.2143]
[1719333558044,14.70977039,138.68,138.59,15.0037]
[1719333558045,7.2124,138.65,138.59,7.2154]
[1719333558242,7.3821,138.66,138.59,7.2154]
[1719333559059,7.2115,138.67,138.6,7.2146]
[1719333559355,7.49887039,138.68,138.63,7.2134]
[1719333559655,7.49887039,138.68,138.64,7.2127]
[1719333559962,7.49887039,138.68,138.58,23.69]
[1719333560144,14.70977039,138.68,138.58,23.69]
[1719333560553,7.49887039,138.68,138.58,23.69]
[1719333560733,14.70977039,138.68,138.58,23.69]
[1719333560941,7.3814,138.67,138.55,45.6172]
[1719333561142,0.17,138.67,138.56,0.34]
[1719333562254,14.70977039,138.68,138.56,0.34]
[1719333562444,7.49887039,138.68,138.58,23.69]
[1719333563059,7.49887039,138.68,138.59,0.17]
[1719333563261,7.49887039,138.68,138.58,23.69]
[1719333564435,7.49887039,138.68,138.59,0.17]
[1719333565257,7.49887039,138.68,138.58,23.69]
[1719333565445,14.70987039,138.68,138.58,23.69]
[1719333565641,0.17,138.67,138.56,21.83949553]
[1719333565844,0.17,138.67,138.57,0.17]
[1719333567540,7.49887039,138.68,138.59,23.69]
[1719333567748,29.087,138.72,138.6,0.17]
[1719333567952,7.49965148,138.7,138.6,0.17]
[1719333568360,7.49965148,138.7,138.6,0.34]
[1719333570450,7.3803,138.69,138.59,23.69]
[1719333570647,7.3803,138.69,138.58,15.4323]
[1719333570648,7.3805,138.69,138.58,15.4323]
[1719333571082,7.3805,138.69,138.56,1.66949553]
[1719333571083,18.0284,138.67,138.56,1.66949553]
[1719333571283,116.88898553,138.68,138.56,1.66949553]
[1719333571452,27.2123,138.66,138.56,1.66949553]
[1719333571778,7.3815,138.67,138.56,1.66949553]
[1719333571971,71.88898553,138.68,138.54,15.7996]
[1719333571972,20.0,138.65,138.54,15.7996]
[1719333572151,20.0,138.65,138.59,7.2151]
[1719333573374,20.0,138.65,138.54,15.7996]
[1719333573549,7.3833,138.64,138.57,7.2164]
[1719333573750,20.0,138.67,138.54,15.7996]
[1719333573975,7.2119,138.66,138.59,7.2151]
[1719333574164,20.17,138.65,138.6,7.2149]
[1719333574482,20.0,138.64,138.6,7.2149]
[1719333574656,0.17,138.65,138.59,7.2154]
[1719333574978,20.17,138.65,138.59,7.2154]
[1719333576467,27.3825,138.65,138.58,7.2159]
[1719333577181,20.17,138.65,138.54,15.7996]
[1719333577480,27.2118,138.67,138.6,7.2149]
[1719333577778,27.2115,138.67,138.6,7.2148]
[1719333578280,7.49847654,138.66,138.6,7.2148]
[1719333578580,20.0,138.65,138.6,7.2148]
[1719333578756,20.0,138.65,138.61,7.2144]
[1719333579472,7.66847654,138.66,138.6,7.2148]
[1719333579905,7.49847654,138.66,138.61,7.2144]
[1719333580180,7.49847654,138.66,138.55,0.17]
[1719333580487,7.49847654,138.66,138.6,7.215]
[1719333581157,14.71037654,138.66,138.59,7.2153]
[1719333582158,7.49847654,138.66,138.54,39.4896]
[1719333582359,7.2132,138.64,138.57,7.2162]
[1719333582563,27.2124,138.65,138.58,7.216]
[1719333582768,0.17,138.64,138.58,7.216]
[1719333583578,0.17,138.64,138.59,7.2154]
[1719333584467,7.383,138.64,138.57,7.2162]
[1719333584781,7.2135,138.63,138.56,7.2169]
[1719333585389,7.3831,138.64,138.57,7.2164]
[1719333585882,7.2134,138.63,138.57,7.2164]
[1719333586084,7.2134,138.63,138.56,7.2168]
[1719333587349,7.2134,138.63,138.57,7.2165]
[1719333587550,7.3831,138.64,138.57,7.2165]
[1719333587956,7.3831,138.64,138.58,7.2159]
[1719333588263,7.3831,138.64,138.57,7.2163]
[1719333588985,7.3831,138.64,138.58,7.216]
[1719333589291,0.17,138.64,138.58,7.216]
[1719333590590,7.383,138.64,138.58,7.216]
[1719333591084,7.383,138.64,138.57,7.2163]
[1719333591589,14.86602446,138.64,138.57,7.2163]
[1719333592085,14.86602446,138.64,138.58,7.2159]
[1719333592582,22.059,138.63,138.57,7.2164]
[1719333592890,0.17,138.62,138.57,7.2164]
[1719333594283,0.17,138.62,138.52,6.1887]
[1719333594284,0.17,138.62,138.58,7.2159]
[1719333594990,0.17,138.62,138.57,7.2163]
[1719333595691,0.17,138.62,138.58,7.2159]
[1719333596566,22.059,138.63,138.59,7.2155]
[1719333596981,22.059,138.63,138.6,7.215]
[1719333597479,22.059,138.63,138.6,7.2148]
[1719333597688,22.059,138.63,138.61,7.2144]
[1719333598267,15.6458,138.63,138.6,7.2148]
[1719333598892,29.59485307,138.66,138.6,7.2148]
[1719333599684,29.59485307,138.66,138.54,46.68]
[1719333599910,29.59485307,138.66,138.55,0.34]
[1719333600206,22.1155,138.66,138.56,40.1418]
[1719333600493,22.1155,138.66,138.57,0.34]
[1719333601694,22.74879481,138.69,138.57,0.34]
[1719333601878,20.0,138.68,138.58,6.5618]
[1719333602209,15.2724,138.69,138.59,0.34]
[1719333602367,15.2724,138.69,138.58,6.5618]
[1719333602565,7.2112,138.68,138.58,6.5618]
[1719333602768,7.212,138.66,138.57,0.34]
[1719333602982,22.4831,138.69,138.57,0.34]
[1719333603306,7.47401638,138.7,138.59,6.2098]
[1719333603462,7.47401638,138.7,138.6,0.34]
[1719333603661,15.2362,138.72,138.6,22.02]
[1719333603884,20.0,138.71,138.6,0.34]
[1719333604310,27.2092,138.71,138.6,0.34]
[1719333605375,20.0,138.71,138.6,0.34]
[1719333607598,53.60262324,138.72,138.6,0.34]
[1719333608209,0.17,138.71,138.6,0.34]
[1719333608412,22.70352324,138.72,138.6,45.71]
[1719333608698,7.46732324,138.72,138.61,24.19380219]
[1719333608877,7.46732324,138.72,138.62,0.34]
[1719333609077,6.5072,138.74,138.63,60.8436]
[1719333609294,6.5072,138.74,138.65,6.304]
[1719333609502,15.6458,138.75,138.66,1.18454328]
[1719333610485,6.37868553,138.76,138.66,1.18454328]
[1719333611903,29.70703531,138.78,138.67,15.6972]
[1719333612093,29.70703531,138.78,138.68,1.18442148]
[1719333612296,22.2488,138.78,138.68,1.18442148]
[1719333612482,0.8538248,138.8,138.68,42.86442148]
[1719333612804,0.8538248,138.8,138.69,29.8982]
[1719333613105,0.8538248,138.8,138.71,16.4079]
[1719333613409,0.8538248,138.8,138.72,1.18417798]
[1719333613699,0.8538248,138.8,138.72,46.55417798]
[1719333613904,0.8538248,138.8,138.73,47.7467]
[1719333614101,0.8538248,138.8,138.75,16.4079]
[1719333614405,0.8538248,138.8,138.76,1.20160975]
[1719333614611,0.8538248,138.8,138.76,21.20160975]
[1719333614790,0.8538248,138.8,138.77,0.86154766]
[1719333615101,0.8538248,138.8,138.78,0.34]
[1719333615306,0.8538248,138.8,138.78,1.20142351]
[1719333616293,6.4099,138.9,138.78,24.89142351]
[1719333616497,6.4099,138.9,138.79,6.4695]
[1719333616699,6.4099,138.9,138.8,1.2013685]
[1719333616897,6.4099,138.9,138.8,0.8613685]
[1719333617506,13.6093,138.9,138.8,0.8613685]
[1719333617682,6.4099,138.9,138.8,0.8613685]
[1719333618098,6.4099,138.9,138.81,0.34]
[1719333618379,6.4099,138.9,138.82,0.8612444]
[1719333618601,6.4099,138.9,138.82,16.1619]
[1719333618800,13.6094,138.9,138.83,0.86112032]
[1719333619014,6.4099,138.9,138.83,0.86112032]
[1719333619491,6.4099,138.9,138.8,0.86112032]
[1719333619492,7.2005,138.88,138.8,0.86112032]
[1719333619685,30.0999,138.9,138.8,0.86112032]
[1719333619686,7.2012,138.87,138.8,0.86112032]
[1719333619888,7.2015,138.86,138.8,0.86112032]
[1719333620084,30.0999,138.9,138.8,0.86112032]
[1719333620293,7.2011,138.87,138.8,0.86112032]
[1719333620817,7.2017,138.86,138.8,0.86112032]
[1719333621131,7.202,138.85,138.76,22.2023]
[1719333621411,0.17,138.84,138.77,0.86133493]
[1719333621918,0.17,138.85,138.77,0.86133493]
[1719333623010,7.3721,138.85,138.77,0.86133493]
[1719333623313,7.2027,138.84,138.77,0.86133493]
[1719333623495,7.2026,138.84,138.77,0.86133493]
[1719333623814,0.17,138.83,138.76,22.2023]
[1719333623998,7.373,138.83,138.77,0.86133492]
[1719333624201,0.17,138.83,138.77,0.86133492]
[1719333625798,7.2036,138.82,138.76,22.2023]
[1719333626002,7.204,138.81,138.76,15.9757]
[1719333626397,0.17,138.82,138.76,15.9757]
[1719333626609,20.0,138.83,138.76,15.9757]
[1719333626820,0.17,138.82,138.76,15.9757]
[1719333627021,0.17,138.82,138.77,0.8624586]
[1719333627216,0.17,138.82,138.76,15.9757]
[1719333627601,7.3736,138.82,138.76,15.9757]
[1719333627911,0.17,138.82,138.76,15.9757]
[1719333630799,20.0,138.83,138.76,15.9757]
[1719333633120,7.2062,138.77,138.67,21.4414]
[1719333633422,23.69,138.78,138.67,21.4414]
[1719333633423,7.3768,138.76,138.67,21.4414]
[1719333633613,7.3766,138.76,138.67,21.4414]
[1719333633816,0.17,138.76,138.67,21.4414]
[1719333634113,0.17,138.76,138.69,7.2102]
[1719333634721,0.17,138.76,138.68,7.2106]
[1719333634910,7.3768,138.76,138.68,7.2106]
[1719333635628,0.17,138.76,138.68,7.2106]
[1719333635798,7.3767,138.76,138.68,7.2106]
[1719333636303,0.17,138.76,138.68,7.2106]
[1719333636912,7.3767,138.76,138.68,7.2106]
[1719333637305,7.2072,138.75,138.67,28.6526]
[1719333637510,30.302,138.78,138.68,7.2107]
[1719333637722,30.302,138.78,138.67,21.4414]
[1719333637723,20.17,138.77,138.67,21.4414]
[1719333638399,20.17,138.77,138.7,7.2094]
[1719333638603,27.62991119,138.77,138.67,21.4414]
[1719333638800,7.2067,138.76,138.68,7.2107]
[1719333639310,0.17,138.75,138.68,7.2107]
[1719333639619,0.17,138.75,138.67,21.4414]
[1719333639948,0.17,138.76,138.67,21.4414]
[1719333640723,7.3767,138.76,138.68,7.2107]
[1719333641802,0.17,138.76,138.67,21.4414]
[1719333642115,0.17,138.76,138.69,7.2099]
[1719333642517,0.17,138.76,138.67,15.0546]
[1719333642721,7.208,138.74,138.67,15.0546]
[1719333642904,0.17,138.73,138.67,15.0546]
[1719333643106,23.69,138.75,138.67,15.0546]
[1719333643320,0.17,138.74,138.67,15.0546]
[1719333643624,27.45991119,138.77,138.67,15.0546]
[1719333644125,27.45991119,138.77,138.68,6.5088]
[1719333644326,7.45991119,138.77,138.68,6.5088]
[1719333645228,6.37868553,138.8,138.7,16.1326]
[1719333646136,7.45773031,138.81,138.7,16.1326]
[1719333646307,7.45773031,138.81,138.71,0.34]
[1719333646901,7.45773031,138.81,138.7,16.1326]
[1719333646902,14.66173031,138.81,138.7,16.1326]
[1719333647702,7.45773031,138.81,138.7,16.1326]
[1719333647928,7.45773031,138.81,138.72,6.6377]
[1719333648131,23.69,138.82,138.72,6.6377]
[1719333648707,30.8937,138.82,138.72,6.6377]
[1719333649323,0.17,138.81,138.72,6.6377]
[1719333649530,7.2056,138.78,138.72,6.6377]
[1719333649709,23.69,138.79,138.72,6.6377]
[1719333650020,7.2061,138.77,138.72,6.6377]
[1719333650608,7.3757,138.78,138.72,6.6377]
[1719333650811,20.0,138.77,138.72,6.6377]
[1719333651018,20.0,138.77,138.7,16.1326]
[1719333651534,27.3759,138.78,138.7,16.1326]
[1719333652128,20.17,138.78,138.7,16.1326]
[1719333653027,27.376,138.78,138.7,16.1326]
[1719333653515,20.17,138.78,138.7,16.1326]
[1719333653711,7.2069,138.76,138.7,16.1326]
[1719333653911,20.0,138.75,138.7,16.1326]
[1719333654425,20.0,138.76,138.7,16.1326]
[1719333654728,27.2067,138.76,138.7,16.1326]
[1719333654957,0.17,138.75,138.7,16.1326]
[1719333656015,7.2081,138.74,138.68,6.3396]
[1719333656325,20.17,138.73,138.68,6.3396]
[1719333658123,20.0,138.74,138.7,7.2096]
[1719333658334,20.0,138.75,138.7,7.2096]
[1719333659331,20.0,138.76,138.7,7.2096]
[1719333659719,20.0,138.76,138.68,6.3396]
[1719333660240,20.0,138.76,138.69,0.98018895]
[1719333661125,7.2086,138.73,138.68,7.32215005]
[1719333661309,7.2088,138.72,138.68,6.3396]
[1719333661508,7.2088,138.72,138.66,15.564]
[1719333661509,7.2093,138.71,138.66,15.564]
[1719333661710,30.8993,138.71,138.66,15.564]
[1719333661910,7.2099,138.7,138.66,15.564]
[1719333662732,27.2107,138.69,138.64,6.4639]
[1719333662919,0.17,138.68,138.64,6.4639]
[1719333663539,0.17,138.68,138.62,16.2807]
[1719333664243,0.17,138.68,138.62,23.4946]
[1719333664725,0.17,138.68,138.62,16.2807]
[1719333664920,0.17,138.68,138.62,17.71730184]
[1719333665138,0.17,138.68,138.58,7.2155]
[1719333665139,7.2122,138.66,138.58,7.2155]
[1719333665339,20.0,138.65,138.59,8.65258057]
[1719333665524,20.0,138.65,138.56,22.6299]
[1719333665922,20.0,138.66,138.56,22.6299]
[1719333666339,0.17,138.65,138.59,7.215]
[1719333667237,7.2103,138.7,138.56,22.6299]
[1719333667543,43.86,138.69,138.57,0.17]
[1719333667747,43.86,138.69,138.57,0.34]
[1719333667927,43.86,138.69,138.56,22.6299]
[1719333668247,7.2138,138.63,138.56,22.6299]
[1719333668627,0.17,138.62,138.56,22.6299]
[1719333668823,20.17,138.62,138.52,6.5566]
[1719333669052,7.2169,138.57,138.52,15.3445]
[1719333669242,23.69,138.58,138.52,15.3445]
[1719333669243,30.9062,138.58,138.52,15.3445]
[1719333669540,20.0,138.57,138.52,15.3445]
[1719333669747,20.17,138.57,138.52,15.3445]
[1719333670324,20.0,138.57,138.52,22.5636]
[1719333670917,0.17,138.58,138.53,0.62279629]
[1719333671136,20.0,138.6,138.53,0.62279629]
[1719333671745,20.0,138.61,138.54,7.2179]
[1719333671925,20.0,138.61,138.55,7.84096623]
[1719333672441,20.0,138.61,138.56,6.1402]
[1719333674346,7.385,138.6,138.53,0.6237059]
[1719333674649,0.17,138.6,138.53,0.6237059]
[1719333675143,0.17,138.6,138.53,7.8421059]
[1719333675457,0.17,138.6,138.53,7.8422059]
[1719333675949,20.0,138.61,138.53,7.8422059]
[1719333675950,20.0,138.61,138.53,0.6237059]
[1719333676132,7.46572166,138.62,138.53,0.6237059]
[1719333676449,6.24624139,138.66,138.58,7.2159]
[1719333676450,7.2118,138.66,138.58,7.2159]
[1719333676653,7.2118,138.66,138.55,22.4232]
[1719333676654,20.0,138.65,138.56,0.62357085]
[1719333676827,14.6715684,138.66,138.57,7.2161]
[1719333677020,14.6715684,138.66,138.58,0.62348085]
[1719333677223,14.6715684,138.66,138.58,7.83938085]
[1719333677471,7.2125,138.65,138.57,7.2164]
[1719333677650,13.83725869,138.66,138.58,7.2159]
[1719333677651,21.04925869,138.66,138.58,7.2159]
[1719333678246,20.0,138.65,138.58,7.2159]
[1719333678451,6.224,138.69,138.59,0.62334598]
[1719333678762,18.0213,138.73,138.6,22.9606]
[1719333678763,12.78909029,138.73,138.6,22.9606]
[1719333678957,7.45749188,138.7,138.61,0.62325603]
[1719333679161,20.0,138.72,138.61,0.62325603]
[1719333679448,20.0,138.72,138.65,7.2119]
[1719333679752,20.0,138.72,138.62,0.17]
[1719333679753,13.83443672,138.73,138.62,0.17]
[1719333680051,21.04283672,138.73,138.64,7.2124]
[1719333680226,21.04283672,138.73,138.65,7.83507622]
[1719333680535,7.2105,138.69,138.61,7.2144]
[1719333680848,51.37759029,138.72,138.6,22.9606]
[1719333681029,0.17,138.71,138.6,22.9606]
[1719333681223,24.57119029,138.71,138.6,22.9606]
[1719333681431,13.75689029,138.71,138.63,7.2134]
[1719333681651,7.2098,138.7,138.62,7.2138]
[1719333681853,20.17,138.69,138.62,7.2138]
[1719333682041,6.37759029,138.71,138.63,7.213]
[1719333682042,20.0,138.7,138.63,7.213]
[1719333682226,20.0,138.7,138.64,7.2127]
[1719333682927,14.66504643,138.73,138.65,7.2122]
[1719333683147,20.0,138.72,138.65,7.2122]
[1719333683728,20.0,138.72,138.6,22.9606]
[1719333683729,27.2087,138.72,138.64,7.2127]
[1719333683938,7.2094,138.71,138.63,7.2134]
[1719333684349,20.0,138.72,138.65,7.2123]
[1719333684654,0.17,138.71,138.64,7.2128]
[1719333685360,27.209,138.72,138.65,7.212]
[1719333685361,20.0,138.72,138.65,7.212]
[1719333685849,7.45684643,138.73,138.61,16.4896]
[1719333686153,7.45684643,138.73,138.69,7.2098]
[1719333686460,7.2067,138.76,138.68,23.7003]
[1719333686627,20.0,138.75,138.69,7.2102]
[1719333686956,20.0,138.75,138.7,7.2096]
[1719333687135,20.0,138.75,138.69,7.2101]
[1719333687343,14.66397458,138.77,138.69,7.2101]
[1719333687344,20.0,138.76,138.69,7.2101]
[1719333687542,27.2066,138.76,138.69,7.2101]
[1719333687850,27.2066,138.76,138.68,23.7]
[1719333688058,27.2066,138.76,138.68,16.4896]
[1719333688059,20.0,138.76,138.68,16.4896]
[1719333688271,7.2083,138.73,138.68,16.4896]
[1719333688557,7.2078,138.74,138.68,16.4896]
[1719333688930,0.17,138.73,138.68,16.4896]
[1719333689433,20.17,138.74,138.68,16.4896]
[1719333689742,27.3777,138.74,138.68,16.4896]
[1719333689949,7.2091,138.72,138.64,23.262]
[1719333690140,20.0,138.74,138.64,16.0492]
[1719333690343,0.17,138.73,138.64,16.0492]
[1719333690651,20.0,138.76,138.64,16.0492]
[1719333690856,16.5567,138.75,138.64,16.0492]
[1719333691030,27.2078,138.74,138.66,7.2115]
[1719333691238,20.0,138.74,138.67,7.2112]
[1719333691547,20.0,138.74,138.64,16.0492]
[1719333691548,7.3785,138.73,138.65,7.212]
[1719333691731,20.0,138.72,138.65,7.212]
[1719333691936,0.17,138.71,138.65,7.212]
[1719333692241,0.17,138.71,138.64,23.2619]
[1719333695054,7.3793,138.71,138.64,23.2619]
[1719333695359,7.2103,138.69,138.61,23.5371]
[1719333695560,20.0,138.7,138.61,23.5371]
[1719333695561,27.2111,138.68,138.61,16.3228]
[1719333695733,0.17,138.67,138.61,16.3228]
[1719333695934,20.17,138.67,138.61,16.3228]
[1719333696331,20.17,138.67,138.61,24.52429274]
[1719333696538,0.17,138.67,138.61,23.5372]
[1719333696737,7.2122,138.66,138.59,6.0916]
[1719333696939,20.17,138.65,138.59,6.0916]
[1719333697161,20.17,138.65,138.59,13.3071]
[1719333697347,0.17,138.65,138.6,7.2149]
[1719333698166,20.0,138.66,138.61,7.2142]
[1719333698464,20.0,138.66,138.6,7.2148]
[1719333699459,20.0,138.66,138.62,7.2137]
[1719333699642,20.0,138.69,138.59,6.0916]
[1719333699838,20.0,138.69,138.62,7.2137]
[1719333700258,20.0,138.69,138.59,6.0916]
[1719333700470,7.2111,138.68,138.6,7.2148]
[1719333700652,20.0,138.67,138.6,7.2148]
[1719333701170,27.2115,138.67,138.59,7.2154]
[1719333701463,0.17,138.66,138.59,7.2154]
[1719333701662,0.17,138.66,138.57,15.5582]
[1719333701970,0.17,138.66,138.6,7.2149]
[1719333702137,0.17,138.66,138.57,15.5582]
[1719333702659,0.17,138.66,138.61,7.2143]
[1719333702852,50.8606,138.69,138.61,7.2143]
[1719333703059,7.3811,138.68,138.6,7.2148]
[1719333703252,20.0,138.67,138.61,7.2144]
[1719333703457,7.3809,138.68,138.6,7.2148]
[1719333703642,20.0,138.67,138.6,7.2148]
[1719333703845,0.17,138.66,138.6,7.2148]
[1719333704358,20.0,138.67,138.57,15.5582]
[1719333704574,20.17,138.68,138.57,15.5582]
[1719333704764,20.17,138.68,138.62,7.2136]
[1719333705075,20.17,138.68,138.61,7.2144]
[1719333705237,20.17,138.68,138.62,7.2139]
[1719333705437,20.17,138.68,138.63,7.2132]
[1719333705638,20.17,138.68,138.57,15.5582]
[1719333706169,7.2115,138.67,138.59,7.2151]
[1719333706351,0.17,138.66,138.59,7.2151]
[1719333708250,0.17,138.66,138.6,7.2149]
[1719333708644,27.2108,138.68,138.6,7.2149]
[1719333708851,0.17,138.67,138.61,7.2144]
[1719333709364,20.0,138.68,138.57,15.5582]
[1719333709539,20.0,138.68,138.61,7.2142]
[1719333709940,20.0,138.68,138.57,15.5582]
[1719333710164,7.2113,138.67,138.59,7.2154]
[1719333710368,34.67024371,138.68,138.6,7.2148]
[1719333710858,0.17,138.67,138.6,7.2148]
[1719333711569,7.3814,138.67,138.6,7.2148]
[1719333711739,7.3814,138.67,138.59,7.2153]
[1719333712356,0.17,138.67,138.61,7.2144]
[1719333713057,27.45924371,138.68,138.57,15.5582]
[1719333713252,27.45924371,138.68,138.63,7.213]
[1719333713571,27.45924371,138.68,138.62,7.2134]
[1719333714452,27.45924371,138.68,138.63,7.2133]
[1719333714647,20.0,138.68,138.63,7.2133]
[1719333715010,20.0,138.68,138.62,7.2137]
[1719333716698,20.0,138.68,138.61,7.2144]
[1719333716861,0.17,138.67,138.61,7.2144]
[1719333718171,20.0,138.68,138.57,17.22757505]
[1719333718356,20.0,138.68,138.62,7.2137]
[1719333720161,20.0,138.68,138.61,7.2142]
[1719333720364,31.0304,138.69,138.61,7.2142]
[1719333720572,30.8604,138.69,138.61,7.2142]
[1719333720752,20.17,138.68,138.61,7.2142]
[1719333721458,20.17,138.68,138.62,7.2138]
[1719333722374,23.65,138.69,138.63,7.2132]
[1719333722579,7.45825487,138.7,138.58,0.34]
[1719333722778,15.0847,138.71,138.66,7.2116]
[1719333723672,15.0847,138.71,138.67,7.2111]
[1719333723875,6.5625,138.73,138.68,7.2105]
[1719333724055,6.5625,138.73,138.66,7.2115]
[1719333724258,6.5625,138.73,138.67,7.2112]
[1719333725079,6.5625,138.73,138.63,15.0362]
[1719333725252,6.5625,138.73,138.59,1.66913414]
[1719333725253,38.0224,138.72,138.6,23.8534]
[1719333725453,23.65,138.71,138.62,7.2138]
[1719333725681,27.2101,138.7,138.62,7.2134]
[1719333725879,0.17,138.69,138.62,7.2134]
[1719333726576,0.17,138.69,138.6,16.6385]
[1719333726964,20.0,138.7,138.61,0.34]
[1719333727276,27.2088,138.72,138.6,16.6385]
[1719333727475,27.2088,138.72,138.61,0.34]
[1719333727476,0.17,138.71,138.61,0.34]
[1719333727855,0.17,138.71,138.65,7.2123]
[1719333728073,20.0,138.72,138.66,7.2117]
[1719333729677,20.0,138.72,138.65,7.2122]
[1719333730260,6.5625,138.73,138.68,7.2106]
[1719333730486,6.5625,138.73,138.69,7.21]
[1719333730790,16.1123,138.75,138.69,7.21]
[1719333731155,16.1123,138.75,138.7,7.2096]
[1719333732363,16.1123,138.75,138.69,7.2101]
[1719333733573,16.1123,138.75,138.7,7.2097]
[1719333735280,20.99674354,138.77,138.7,7.2097]
[1719333735492,13.79054354,138.77,138.7,7.2097]
[1719333735964,6.3487,138.77,138.71,7.2088]
[1719333737086,6.3487,138.77,138.67,1.440154]
[1719333737586,13.5549,138.77,138.69,7.2102]
[1719333737778,13.5549,138.77,138.7,1.44052172]
[1719333739177,6.3487,138.77,138.7,8.65012172]
[1719333739376,6.3487,138.77,138.71,1.44041786]
[1719333739585,13.5548,138.77,138.69,7.2102]
[1719333739894,0.17,138.76,138.7,1.44179531]